bitfinex/quotes_BTCUSD_20241110
["timestamp","ask_amount","ask_price","bid_price","bid_amount"]
[1731228853574,1.5,79031.0,79030.0,0.23573312]
[1731228854027,1.5,79031.0,79030.0,0.22594221]
[1731228854242,1.5,79031.0,79030.0,0.33024221]
[1731228854589,1.5,79031.0,79030.0,0.34046371]
[1731228854995,1.500839,79031.0,79030.0,0.34046371]
[1731228857189,1.500839,79031.0,79030.0,0.23616371]
[1731228857818,1.500839,79031.0,79030.0,0.22644221]
[1731228858778,1.500839,79031.0,79030.0,0.1]
[1731228858922,1.64821578,79031.0,79021.0,0.0005]
[1731228859135,1.64821578,79031.0,79023.0,0.1]
[1731228859299,1.64821578,79031.0,79028.0,0.0005]
[1731228859498,1.64821578,79031.0,79029.0,0.00427455]
[1731228859717,1.64821578,79031.0,79026.0,0.0005]
[1731228859956,1.64821578,79031.0,79027.0,0.00427928]
[1731228860376,1.64821578,79031.0,79023.0,0.22594221]
[1731228860377,0.14821578,79031.0,79023.0,0.22644221]
[1731228860605,0.14821578,79031.0,79028.0,0.00427691]
[1731228860822,1.5,79030.0,79024.0,0.0005]
[1731228861022,1.5,79030.0,79029.0,0.00971597]
[1731228861183,1.5,79030.0,79024.0,0.0005]
[1731228861563,1.5,79030.0,79025.0,0.00973264]
[1731228862414,0.14821578,79031.0,79025.0,0.00973264]
[1731228862565,0.12521578,79031.0,79025.0,0.00973264]
[1731228862768,1.5,79026.0,79025.0,0.00973264]
[1731228862985,1.5,79026.0,79025.0,0.0005]
[1731228865635,1.5,79026.0,79024.0,0.0005]
[1731228865842,1.5,79026.0,79025.0,0.0005]
[1731228866058,1.5,79026.0,79024.0,0.0005]
[1731228866245,1.5,79026.0,79025.0,0.0005]
[1731228866979,1.5,79026.0,79024.0,0.0005]
[1731228867171,1.5,79026.0,79023.0,0.22644221]
[1731228867665,1.5,79026.0,79025.0,0.0005]
[1731228868265,1.5,79026.0,79024.0,0.0005]
[1731228868474,1.5,79026.0,79025.0,0.0005]
[1731228869139,1.5,79026.0,79023.0,0.22644221]
[1731228869344,1.5,79026.0,79025.0,0.0005]
[1731228876559,1.5,79026.0,79024.0,0.0005]
[1731228877187,0.09674782,79027.0,79024.0,0.0005]
[1731228877593,0.07374782,79027.0,79025.0,0.00976724]
[1731228878215,1.5,79026.0,79025.0,0.00976724]
[1731228878535,1.5,79026.0,79025.0,0.0043019]
[1731228878659,1.5,79026.0,79024.0,0.0005]
[1731228879945,1.5,79026.0,79025.0,0.001678]
[1731228885201,0.22894782,79026.0,79025.0,0.001678]
[1731228885813,0.23344782,79026.0,79025.0,0.001678]
[1731228886273,1.73344782,79026.0,79025.0,0.001678]
[1731228887940,1.73544782,79026.0,79025.0,0.001678]
[1731228888139,1.96807523,79026.0,79025.0,0.001678]
[1731228888336,1.87132741,79026.0,79025.0,0.001678]
[1731228888915,1.96803933,79026.0,79025.0,0.001678]
[1731228889676,2.06478715,79026.0,79025.0,0.001678]
[1731228890075,1.96807523,79026.0,79025.0,0.001678]
[1731228890285,1.87132741,79026.0,79025.0,0.001678]
[1731228890688,1.86932741,79026.0,79025.0,0.001678]
[1731228892654,1.84632741,79026.0,79025.0,0.001678]
[1731228892853,1.6137,79026.0,79025.0,0.001678]
[1731228893074,1.5045,79026.0,79025.0,0.001678]
[1731228894168,1.60124782,79026.0,79025.0,0.001678]
[1731228895333,1.65195651,79026.0,79025.0,0.001678]
[1731228897427,1.64745651,79026.0,79025.0,0.001678]
[1731228897649,1.65195651,79026.0,79025.0,0.001678]
[1731228903388,1.65279551,79026.0,79025.0,0.001678]
[1731228903846,1.64829551,79026.0,79025.0,0.001678]
[1731228904050,1.65279551,79026.0,79025.0,0.001678]
[1731228904503,0.01443738,79023.0,79022.0,0.001678]
[1731228904704,0.14037959,79023.0,79022.0,0.001678]
[1731228904923,0.14237959,79023.0,79022.0,0.001678]
[1731228905127,1.64237959,79023.0,79022.0,0.001678]
[1731228905331,1.64037959,79023.0,79022.0,0.001678]
[1731228907547,1.63537959,79023.0,79022.0,0.001678]
[1731228907760,1.61737959,79023.0,79022.0,0.001678]
[1731228910063,1.5,79023.0,79022.0,0.001678]
[1731228917302,1.59677584,79023.0,79022.0,0.001678]
[1731228917740,1.5,79023.0,79022.0,0.001678]
[1731228922629,0.19355168,79024.0,79022.0,0.001678]
[1731228923266,0.19355168,79024.0,79023.0,0.00877141]
[1731228923674,0.19355168,79024.0,79022.0,0.001678]
[1731228923675,1.69355168,79024.0,79022.0,0.001678]
[1731228923882,0.19355168,79024.0,79022.0,0.001678]
[1731228924095,0.19355168,79024.0,79023.0,0.00877141]
[1731228924299,1.69355168,79024.0,79023.0,0.00877141]
[1731228924496,1.69355168,79024.0,79022.0,0.001678]
[1731228925271,1.5,79024.0,79023.0,0.0463]
[1731228925678,1.5,79024.0,79023.0,0.05507141]
[1731228925881,1.5,79024.0,79023.0,0.0463]
[1731228926501,1.500839,79024.0,79023.0,0.0463]
[1731228927165,1.500839,79024.0,79016.0,0.039078]
[1731228927400,1.500839,79024.0,79016.0,0.16502021]
[1731228927824,1.500839,79024.0,79021.0,0.005]
[1731228928022,1.500839,79024.0,79022.0,0.12594221]
[1731228928405,1.500839,79024.0,79022.0,0.12844563]
[1731228928611,1.500839,79024.0,79022.0,0.12594221]
[1731228929124,1.500839,79024.0,79023.0,0.1]
[1731228929343,1.500839,79024.0,79023.0,0.22594221]
[1731228930201,1.500839,79024.0,79023.0,0.34944221]
[1731228930625,1.500839,79024.0,79023.0,0.35818464]
[1731228937325,1.500839,79024.0,79023.0,0.31188464]
[1731228937507,0.000839,79024.0,79023.0,0.31188464]
[1731228937707,0.000839,79024.0,79023.0,0.30314221]
[1731228937871,0.000839,79024.0,79023.0,0.31215754]
[1731228938084,0.000839,79024.0,79023.0,0.18621533]
[1731228938293,0.000839,79024.0,79023.0,0.00901533]
[1731228938492,1.500839,79024.0,79023.0,0.00901533]
[1731228938750,1.500839,79024.0,79020.0,0.001678]
[1731228938981,0.09677584,79022.0,79021.0,0.005]
[1731228939181,0.09677584,79022.0,79020.0,0.001678]
[1731228939313,0.09677584,79022.0,79021.0,0.00736291]
[1731228939314,0.09650333,79022.0,79021.0,0.00736291]
[1731228939837,1.59650333,79022.0,79021.0,0.00736291]
[1731228940042,1.59650333,79022.0,79021.0,0.005]
[1731228941055,1.5,79022.0,79021.0,0.35444221]
[1731228941228,1.5,79022.0,79021.0,0.34944221]
[1731228941450,1.5,79022.0,79021.0,0.36109294]
[1731228941629,1.5,79022.0,79021.0,0.36345585]
[1731228942218,1.5,79022.0,79021.0,0.31715585]
[1731228942618,1.5,79022.0,79021.0,0.10901364]
[1731228942831,1.5,79022.0,79020.0,0.006678]
[1731228943247,1.5,79022.0,79021.0,0.005]
[1731228944099,0.000839,79024.0,79021.0,0.005]
[1731228944553,1.5,79022.0,79021.0,0.005]
[1731228946171,1.5,79022.0,79020.0,0.001678]
[1731228947136,0.09677584,79021.0,79020.0,0.001678]
[1731228948952,1.5,79022.0,79020.0,0.001678]
[1731228949156,0.09677584,79021.0,79020.0,0.001678]
[1731228952599,1.57377584,79021.0,79020.0,0.001678]
[1731228955061,1.57350332,79021.0,79020.0,0.001678]
[1731228955245,1.57350332,79021.0,79020.0,0.078878]
[1731228956867,1.5,79021.0,79020.0,0.35412021]
[1731228957344,1.5,79021.0,79020.0,0.35649881]
[1731228959859,0.000839,79024.0,79021.0,0.1]
[1731228960064,0.000839,79024.0,79023.0,0.1]
[1731228960269,0.000839,79024.0,79023.0,0.22594221]
[1731228960469,0.000839,79024.0,79023.0,0.22831104]
[1731228962568,0.09761484,79024.0,79023.0,0.22831104]
[1731228963190,1.59761484,79024.0,79023.0,0.22831104]
[1731228964000,1.500839,79024.0,79023.0,0.22831104]
[1731228964348,1.59761484,79024.0,79023.0,0.22831104]
[1731228964773,1.59761484,79024.0,79023.0,0.22768849]
[1731228965478,1.59761484,79024.0,79023.0,0.22732386]
[1731228966093,1.59761484,79024.0,79023.0,0.22495503]
[1731228967531,0.09677584,79024.0,79023.0,0.22495503]
[1731228967866,0.09677584,79024.0,79023.0,0.22732386]
[1731228968632,0.09677584,79024.0,79023.0,0.27913362]
[1731228968633,1.59677584,79024.0,79023.0,0.27913362]
[1731228969618,1.59550616,79024.0,79023.0,0.27913362]
[1731228970524,0.000839,79026.0,79024.0,0.1]
[1731228970760,0.000839,79026.0,79024.0,0.22594221]
[1731228970761,0.09677584,79025.0,79024.0,0.22594221]
[1731228971128,0.09677584,79025.0,79024.0,0.22831104]
[1731228971514,1.59677584,79025.0,79024.0,0.22831104]
[1731228971918,1.5,79025.0,79024.0,0.22594221]
[1731228973927,1.500839,79025.0,79024.0,0.22594221]
[1731228974633,1.5005665,79025.0,79024.0,0.22594221]
[1731228974958,1.5005665,79025.0,79021.0,0.001678]
[1731228975188,1.59734234,79025.0,79021.0,0.001678]
[1731228975803,1.59734234,79025.0,79021.0,0.05251282]
[1731228976008,1.59734234,79025.0,79021.0,0.001678]
[1731228977938,1.59734234,79025.0,79021.0,0.05252822]
[1731228978049,1.59734234,79025.0,79021.0,0.001678]
[1731228978661,1.49734234,79025.0,79021.0,0.001678]
[1731228981219,1.49706946,79025.0,79021.0,0.001678]
[1731228981435,1.49706946,79025.0,79022.0,0.00027168]
[1731228982599,0.09761484,79025.0,79022.0,0.00027168]
[1731228983566,1.5,79024.0,79022.0,0.00027168]
[1731228984187,1.49972849,79024.0,79022.0,0.00027168]
[1731228986284,0.09647475,79025.0,79022.0,0.00027168]
[1731228987172,1.5,79023.0,79022.0,0.00027168]
[1731228992123,1.5,79023.0,79022.0,0.00527168]
[1731228994500,1.5,79023.0,79022.0,0.30791389]
[1731228994974,1.5,79023.0,79022.0,0.31028692]
[1731228997676,0.000839,79026.0,79022.0,0.31028692]
[1731228997677,0.000839,79025.0,79023.0,0.1]
[1731228998219,0.000839,79025.0,79023.0,0.09937303]
[1731228998421,0.09677584,79024.0,79023.0,0.09937303]
[1731228998636,1.59677584,79024.0,79022.0,0.00027168]
[1731229004082,1.5,79024.0,79022.0,0.00027168]
[1731229004291,1.49945622,79024.0,79022.0,0.00027168]
[1731229004847,1.49945622,79024.0,79023.0,0.22594221]
[1731229005351,1.49945622,79024.0,79023.0,0.30254221]
[1731229005536,1.49918454,79024.0,79023.0,0.30254221]
[1731229005739,1.49918454,79024.0,79023.0,0.30306028]
[1731229010556,0.000839,79025.0,79024.0,0.1]
[1731229010759,0.000839,79025.0,79024.0,0.22594221]
[1731229010959,1.500839,79025.0,79024.0,0.22594221]
[1731229011174,1.500839,79025.0,79024.0,0.22646028]
[1731229012548,0.000839,79026.0,79024.0,0.22646028]
[1731229012759,0.000839,79026.0,79025.0,0.12594221]
[1731229013164,0.000839,79026.0,79025.0,0.22594221]
[1731229013406,0.000839,79026.0,79025.0,0.22646028]
[1731229014039,0.000839,79026.0,79025.0,0.21646028]
[1731229016172,0.000839,79026.0,79025.0,0.24446028]
[1731229016386,0.000839,79026.0,79025.0,0.36929091]
[1731229016611,0.000839,79026.0,79025.0,0.36676028]
[1731229017272,0.000839,79026.0,79025.0,0.37334402]
[1731229017480,0.000839,79026.0,79025.0,0.37834402]
[1731229020440,0.000839,79026.0,79025.0,0.38034402]
[1731229021105,0.000839,79031.0,79030.0,0.1323]
[1731229021327,0.000839,79031.0,79030.0,0.49751559]
[1731229021568,0.000839,79031.0,79030.0,0.4949854]
[1731229021792,0.000839,79031.0,79030.0,0.38820956]
[1731229022309,0.000839,79031.0,79030.0,0.4849854]
[1731229022725,0.000839,79031.0,79030.0,0.38820956]
[1731229025144,0.000839,79031.0,79030.0,0.36473691]
[1731229026404,0.000839,79031.0,79030.0,0.31450956]
[1731229027732,0.000717,79037.0,79031.0,0.1]
[1731229027932,0.000717,79037.0,79036.0,0.005]
[1731229028107,0.000717,79037.0,79036.0,0.23094221]
[1731229028246,0.000717,79037.0,79036.0,0.23749566]
[1731229029318,0.000717,79037.0,79036.0,0.23549566]
[1731229030184,0.000717,79037.0,79036.0,0.28724015]
[1731229031775,0.000717,79037.0,79036.0,0.2806867]
[1731229033125,0.000717,79037.0,79036.0,0.22894221]
[1731229034471,0.00044508,79037.0,79036.0,0.22894221]
[1731229034878,0.00044508,79037.0,79036.0,0.35704221]
[1731229035255,0.00044508,79037.0,79036.0,0.36399359]
[1731229042033,0.00044508,79037.0,79036.0,0.41471437]
[1731229042431,1.5,79046.0,79036.0,0.41471437]
[1731229042702,0.19007071,79047.0,79037.0,0.1]
[1731229042914,0.19007071,79047.0,79038.0,0.12594221]
[1731229043125,0.09677584,79055.0,79038.0,0.12594221]
[1731229043126,0.09677584,79055.0,79039.0,0.1]
[1731229043507,1.5,79045.0,79039.0,0.1]
[1731229043715,1.5,79045.0,79040.0,0.00698924]
[1731229054347,1.49946004,79045.0,79040.0,0.00698924]
[1731229056166,1.49946004,79045.0,79040.0,0.00866724]
[1731229057632,0.29684655,79059.0,79040.0,0.00866724]
[1731229058089,0.29684655,79059.0,79040.0,0.0088625]
[1731229058397,0.29684655,79059.0,79040.0,0.00847141]
[1731229058598,1.5,79045.0,79040.0,0.00873213]
[1731229061408,1.5,79045.0,79040.0,0.01373213]
[1731229061943,1.5,79045.0,79041.0,0.005]
[1731229062264,1.5,79045.0,79042.0,0.00741426]
[1731229064354,1.49972904,79045.0,79042.0,0.00741426]
[1731229066627,0.20007071,79059.0,79044.0,0.19677584]
[1731229066628,0.19007071,79059.0,79044.0,0.19677584]
[1731229066801,0.19007071,79059.0,79044.0,0.1]
[1731229067005,1.5,79055.0,79045.0,0.00695413]
[1731229067230,1.5,79055.0,79046.0,0.12594221]
[1731229067459,1.5,79055.0,79047.0,0.1]
[1731229067953,1.5,79055.0,79048.0,0.005]
[1731229068754,1.5,79055.0,79048.0,0.0879]
[1731229069161,1.5,79055.0,79048.0,0.00545861]
[1731229069162,0.001839,79049.0,79048.0,0.00545861]
[1731229069947,0.001839,79049.0,79048.0,0.52150516]
[1731229070142,0.001839,79049.0,79048.0,0.36060082]
[1731229070610,0.001839,79049.0,79048.0,0.36749277]
[1731229071973,0.001839,79049.0,79048.0,0.32119277]
[1731229072785,0.19007071,79059.0,79048.0,0.32119277]
[1731229072991,0.19007071,79059.0,79049.0,0.12594221]
[1731229073192,3.446022,79060.0,79050.0,0.1]
[1731229073405,3.446022,79060.0,79054.0,0.005]
[1731229073741,1.5,79057.0,79054.0,0.005]
[1731229075046,1.5,79057.0,79056.0,0.23617071]
[1731229075271,1.5,79057.0,79056.0,0.1461]
[1731229077956,3.446022,79060.0,79057.0,0.1]
[1731229078555,1.5,79059.0,79057.0,0.1]
[1731229079103,1.5,79059.0,79056.0,0.1461]
[1731229084527,1.49972833,79059.0,79056.0,0.1461]
[1731229086872,3.446861,79060.0,79056.0,0.1461]
[1731229087528,3.423861,79060.0,79056.0,0.1461]
[1731229087945,1.5,79058.0,79056.0,0.1461]
[1731229088762,1.5,79058.0,79055.0,0.0764]
[1731229090068,1.5,79058.0,79054.0,0.005]
[1731229090279,1.5,79058.0,79055.0,0.1]
[1731229094430,1.49945576,79058.0,79055.0,0.1]
[1731229095255,1.49945576,79058.0,79055.0,0.101678]
[1731229098710,0.000839,79059.0,79055.0,0.101678]
[1731229099779,1.5,79058.0,79055.0,0.101678]
[1731229100646,1.59677584,79058.0,79055.0,0.001678]
[1731229101913,1.5,79058.0,79055.0,0.001678]
[1731229102450,0.000839,79059.0,79055.0,0.001678]
[1731229103712,1.5,79058.0,79055.0,0.001678]
[1731229106230,0.000839,79059.0,79058.0,0.227]
[1731229106464,0.000839,79059.0,79058.0,0.35294221]
[1731229107421,0.000839,79059.0,79058.0,0.35794221]
[1731229114160,1.500839,79059.0,79058.0,0.35794221]
[1731229114357,1.5005673,79059.0,79058.0,0.35794221]
[1731229117577,3.423861,79060.0,79059.0,0.005]
[1731229117779,3.423861,79060.0,79059.0,0.13094221]
[1731229118157,3.423861,79060.0,79059.0,0.23094221]
[1731229118545,4.923861,79060.0,79059.0,0.23094221]
[1731229119134,3.423861,79060.0,79059.0,0.30904221]
[1731229119569,4.923861,79060.0,79059.0,0.30904221]
[1731229120619,3.423861,79060.0,79059.0,0.30904221]
[1731229120788,3.423861,79060.0,79059.0,0.35794221]
[1731229124393,3.42331639,79060.0,79059.0,0.35794221]
[1731229125049,4.92331639,79060.0,79059.0,0.35794221]
[1731229129323,3.42331639,79060.0,79059.0,0.35794221]
[1731229132553,3.40031639,79060.0,79059.0,0.35794221]
[1731229133336,4.90031639,79060.0,79059.0,0.35794221]
[1731229133803,3.40031639,79060.0,79059.0,0.35794221]
[1731229141734,3.39993594,79060.0,79059.0,0.35794221]
[1731229143875,3.39993594,79060.0,79059.0,0.35962021]
[1731229144501,3.39939292,79060.0,79059.0,0.35962021]
[1731229147499,3.37639292,79060.0,79059.0,0.35962021]
[1731229148069,3.37639292,79060.0,79059.0,0.38262021]
[1731229152610,3.37639292,79060.0,79059.0,0.47939605]
[1731229153705,3.37639292,79060.0,79059.0,0.38262021]
[1731229154681,3.37531252,79060.0,79059.0,0.38262021]
[1731229160641,3.37531252,79060.0,79059.0,0.33372021]
[1731229161455,3.37531252,79060.0,79059.0,0.25562021]
[1731229161849,4.87531252,79060.0,79059.0,0.25562021]
[1731229162701,4.85231252,79060.0,79059.0,0.25562021]
[1731229163662,3.35231252,79060.0,79059.0,0.25562021]
[1731229164285,3.35231252,79060.0,79059.0,0.23262021]
[1731229164711,3.35183231,79060.0,79059.0,0.23262021]
[1731229165108,3.40133231,79060.0,79059.0,0.23262021]
[1731229165930,3.40133231,79060.0,79059.0,0.006678]
[1731229167461,4.90133231,79060.0,79059.0,0.006678]
[1731229171175,4.90133231,79060.0,79059.0,0.001678]
[1731229171517,4.90133231,79060.0,79059.0,0.006678]
[1731229173909,4.90133231,79060.0,79059.0,0.20087143]
[1731229177689,4.87833231,79060.0,79059.0,0.20087143]
[1731229177973,4.82883231,79060.0,79059.0,0.32681364]
[1731229178567,4.82856059,79060.0,79059.0,0.32681364]
[1731229179378,3.32856059,79060.0,79059.0,0.32681364]
[1731229183370,4.82856059,79060.0,79059.0,0.32681364]
[1731229188296,4.82806059,79060.0,79059.0,0.32681364]
[1731229192833,4.80506059,79060.0,79059.0,0.32681364]
[1731229199608,4.79117993,79060.0,79059.0,0.32681364]
[1731229201051,3.29117993,79060.0,79059.0,0.47621364]
[1731229201269,3.29117993,79060.0,79059.0,0.49121364]
[1731229201472,0.000717,79065.0,79064.0,0.46495168]
[1731229201705,0.000717,79065.0,79064.0,0.59089389]
[1731229201907,0.000717,79065.0,79064.0,0.39734221]
[1731229204356,0.000717,79065.0,79064.0,0.49411805]
[1731229204794,0.000717,79065.0,79064.0,0.49211805]
[1731229207202,0.000717,79065.0,79064.0,0.49411805]
[1731229207413,0.000717,79065.0,79064.0,0.49211805]
[1731229207653,0.17274006,79090.0,79088.0,0.005]
[1731229207864,0.05174275,79125.0,79089.0,0.12594221]
[1731229208066,0.05174275,79125.0,79090.0,0.1]
[1731229208305,1.5,79095.0,79092.0,0.1]
[1731229208520,1.5,79095.0,79093.0,0.12594221]
[1731229208745,1.5,79095.0,79094.0,0.1]
[1731229210077,1.64317584,79095.0,79094.0,0.1]
[1731229210316,1.64317584,79095.0,79088.0,0.005]
[1731229210566,1.64317584,79095.0,79078.0,0.1]
[1731229210567,0.09677584,79093.0,79092.0,0.1]
[1731229210872,0.0822,79094.0,79092.0,0.1]
[1731229211057,0.0464,79093.0,79092.0,0.1]
[1731229211227,1.64317584,79093.0,79092.0,0.1]
[1731229211461,1.64317584,79093.0,79083.0,0.005]
[1731229211665,0.09677584,79089.0,79088.0,0.19007071]
[1731229212036,1.5464,79093.0,79088.0,0.12594221]
[1731229212258,1.5464,79093.0,79089.0,0.22594221]
[1731229212747,0.09677584,79090.0,79089.0,0.22594221]
[1731229213204,0.09677584,79090.0,79087.0,0.005]
[1731229213436,0.00258241,79090.0,79087.0,0.005]
[1731229213658,1.5464,79093.0,79087.0,0.005]
[1731229219127,1.5464,79093.0,79089.0,0.1]
[1731229222778,1.5234,79093.0,79089.0,0.1]
[1731229224901,1.5234,79093.0,79089.0,0.0980964]
[1731229225551,0.09677584,79092.0,79087.0,0.006678]
[1731229226146,0.09677584,79092.0,79087.0,0.001678]
[1731229226362,0.09677584,79092.0,79087.0,0.006678]
[1731229226781,0.1251,79091.0,79087.0,0.001678]
[1731229230360,1.5,79090.0,79087.0,0.001678]
[1731229232196,1.59677584,79090.0,79087.0,0.001678]
[1731229232606,1.5,79090.0,79087.0,0.001678]
[1731229235551,0.09877584,79088.0,79087.0,0.001678]
[1731229235760,0.22565168,79088.0,79087.0,0.001678]
[1731229236217,1.72565168,79088.0,79087.0,0.001678]
[1731229236628,1.82242752,79088.0,79087.0,0.001678]
[1731229236844,1.72565168,79088.0,79087.0,0.001678]
[1731229237652,1.70265168,79088.0,79087.0,0.001678]
[1731229238290,1.70265168,79088.0,79087.0,0.00167729]
[1731229243836,1.79942752,79088.0,79087.0,0.00167729]
[1731229244449,1.93036973,79088.0,79087.0,0.00167729]
[1731229245794,1.98706809,79088.0,79087.0,0.00167729]
[1731229246203,1.99652352,79088.0,79087.0,0.00167729]
[1731229246399,1.93036973,79088.0,79087.0,0.00167729]
[1731229247591,1.98707501,79088.0,79087.0,0.00167729]
[1731229247876,1.93036973,79088.0,79087.0,0.00167729]
[1731229247990,1.96817121,79088.0,79087.0,0.00167729]
[1731229248798,1.93036973,79088.0,79087.0,0.00167729]
[1731229249198,1.98707501,79088.0,79087.0,0.00167729]
[1731229250052,1.88579286,79088.0,79087.0,0.00167729]
[1731229250258,2.07934454,79088.0,79087.0,0.00167729]
[1731229250698,2.15492738,79088.0,79087.0,0.00167729]
[1731229251194,2.14547609,79088.0,79087.0,0.00167729]
[1731229251447,2.07934334,79088.0,79087.0,0.00167729]
[1731229251655,1.88579166,79088.0,79087.0,0.00167729]
[1731229251857,2.07934334,79088.0,79087.0,0.00167729]
[1731229252618,1.91681982,79088.0,79087.0,0.00167729]
[1731229253021,1.94515186,79088.0,79087.0,0.00167729]
[1731229254638,1.944884,79088.0,79087.0,0.00167729]
[1731229254844,1.94441853,79088.0,79087.0,0.00167729]
[1731229256605,1.7508646,79088.0,79087.0,0.00167729]
[1731229256771,1.94441628,79088.0,79087.0,0.00167729]
[1731229257535,1.84764044,79088.0,79087.0,0.00167729]
[1731229257740,1.94441628,79088.0,79087.0,0.00167729]
[1731229257942,1.9066364,79088.0,79087.0,0.00167729]
[1731229261319,1.9074754,79088.0,79087.0,0.00167729]
[1731229263038,1.94525528,79088.0,79087.0,0.00167729]
[1731229263202,1.9074754,79088.0,79087.0,0.00167729]
[1731229263414,1.94525567,79088.0,79087.0,0.00167729]
[1731229263755,2.03341761,79088.0,79087.0,0.00167729]
[1731229264568,2.07119788,79088.0,79087.0,0.00167729]
[1731229264788,2.08065516,79088.0,79087.0,0.00167729]
[1731229264963,1.91693268,79088.0,79087.0,0.00167729]
[1731229266505,1.97360607,79088.0,79087.0,0.00167729]
[1731229266727,1.91693268,79088.0,79087.0,0.00167729]
[1731229267275,1.97360607,79088.0,79087.0,0.00167729]
[1731229267481,1.91693268,79088.0,79087.0,0.00167729]
[1731229267688,1.9317206,79088.0,79087.0,0.00167729]
[1731229268304,1.89393528,79088.0,79087.0,0.00167729]
[1731229269303,1.93172581,79088.0,79087.0,0.00167729]
[1731229269467,1.89393528,79088.0,79087.0,0.00167729]
[1731229270000,1.93173014,79088.0,79087.0,0.00167729]
[1731229270348,1.60261484,79088.0,79087.0,0.00167729]
[1731229271406,1.64040897,79088.0,79087.0,0.00167729]
[1731229271659,1.60261484,79088.0,79087.0,0.00167729]
[1731229272359,1.69939068,79088.0,79087.0,0.00167729]
[1731229273326,1.505839,79088.0,79087.0,0.00167729]
[1731229273541,1.500839,79088.0,79087.0,0.00167729]
[1731229275833,1.500839,79088.0,79087.0,0.191748]
[1731229276044,1.500839,79088.0,79087.0,0.00738832]
[1731229276239,1.501839,79088.0,79087.0,0.00167729]
[1731229278862,1.501839,79088.0,79087.0,0.00367729]
[1731229279059,1.501839,79088.0,79087.0,0.00167729]
[1731229282708,0.001839,79088.0,79087.0,0.00167729]
[1731229282910,0.001839,79088.0,79087.0,0.00738832]
[1731229283117,0.001839,79088.0,79087.0,0.56000124]
[1731229283244,0.001839,79088.0,79087.0,0.36993053]
[1731229283445,0.001839,79088.0,79087.0,0.37193053]
[1731229284940,0.001839,79088.0,79087.0,0.36693053]
[1731229285146,0.001839,79088.0,79087.0,0.37193053]
[1731229287743,0.001839,79088.0,79087.0,0.39293053]
[1731229287936,0.001839,79088.0,79087.0,0.39493053]
[1731229288959,0.001839,79088.0,79087.0,0.39654104]
[1731229290307,0.001839,79088.0,79087.0,0.49331688]
[1731229290517,0.001839,79088.0,79087.0,0.39654104]
[1731229290870,0.001839,79088.0,79087.0,0.39493053]
[1731229296298,0.000839,79094.0,79087.0,0.39493053]
[1731229296499,0.000839,79094.0,79093.0,0.007]
[1731229296732,0.000839,79094.0,79093.0,0.13294221]
[1731229296905,0.000839,79094.0,79093.0,0.23294221]
[1731229297110,0.000839,79094.0,79093.0,0.23878744]
[1731229297253,1.500839,79094.0,79093.0,0.23294221]
[1731229297658,0.09677584,79099.0,79094.0,0.002]
[1731229297946,0.09677584,79099.0,79094.0,0.22794221]
[1731229298338,0.10388584,79096.0,79094.0,0.22794221]
[1731229298698,1.5,79095.0,79094.0,0.22794221]
[1731229299783,0.010716,79117.0,79110.0,0.1366]
[1731229299980,0.010716,79117.0,79110.0,0.2616]
[1731229300149,0.010716,79117.0,79110.0,0.26736218]
[1731229300350,0.010716,79117.0,79110.0,0.26536218]
[1731229300530,0.010716,79117.0,79110.0,0.24436218]
[1731229300737,0.09677584,79112.0,79110.0,0.31670439]
[1731229300936,0.09677584,79112.0,79110.0,0.01076218]
[1731229301233,0.010716,79117.0,79110.0,0.01076218]
[1731229301234,0.010716,79117.0,79110.0,0.23094221]
[1731229301554,1.488716,79116.0,79110.0,0.23869831]
[1731229301714,0.010716,79117.0,79116.0,0.005]
[1731229301934,0.010716,79117.0,79116.0,0.23094221]
[1731229302135,0.010716,79117.0,79116.0,0.23669831]
[1731229303173,0.010716,79117.0,79116.0,0.0057561]
[1731229303613,0.010716,79117.0,79113.0,0.005]
[1731229303807,0.09677584,79114.0,79113.0,0.005]
[1731229304608,0.09677584,79114.0,79110.0,0.005]
[1731229304809,0.09677584,79111.0,79097.0,0.005]
[1731229305008,0.09677584,79098.0,79089.0,0.01]
[1731229305168,0.0765,79107.0,79095.0,0.00719]
[1731229305375,0.005,79096.0,79087.0,0.00167729]
[1731229305597,0.005,79096.0,79093.0,0.19007071]
[1731229305807,0.005,79096.0,79087.0,0.00167729]
[1731229306007,0.09677584,79088.0,79087.0,0.00167729]
[1731229306380,1.59677584,79088.0,79087.0,0.00167729]
[1731229306519,1.69355168,79088.0,79087.0,0.00167729]
[1731229310929,1.59677584,79088.0,79087.0,0.00167729]
[1731229311367,1.69355168,79088.0,79087.0,0.00167729]
[1731229312677,0.19355168,79088.0,79087.0,0.00167729]
[1731229313744,1.69355168,79088.0,79087.0,0.00167729]
[1731229316981,1.59677584,79088.0,79087.0,0.00167729]
[1731229318895,1.69355168,79088.0,79087.0,0.00167729]
[1731229319349,0.09677584,79095.0,79088.0,0.1]
[1731229319558,0.09677584,79090.0,79089.0,0.22594221]
[1731229319978,1.59677584,79090.0,79089.0,0.22594221]
[1731229320584,1.59677584,79090.0,79087.0,0.00167729]
[1731229320793,1.69355168,79090.0,79087.0,0.00167729]
[1731229320942,1.5,79090.0,79087.0,0.00167729]
[1731229321155,0.09677584,79088.0,79087.0,0.00167729]
[1731229328400,0.07377584,79088.0,79087.0,0.00167729]
[1731229328607,0.17055168,79088.0,79087.0,0.00167729]
[1731229329443,0.26732752,79088.0,79087.0,0.00167729]
[1731229329666,0.37622752,79088.0,79087.0,0.00167729]
[1731229330042,1.87622752,79088.0,79087.0,0.00167729]
[1731229330248,0.005,79083.0,79080.0,0.0069]
[1731229330452,0.19355168,79081.0,79080.0,0.0069]
[1731229330873,1.69355168,79081.0,79080.0,0.0069]
[1731229331249,0.005,79080.0,79069.0,0.19007071]
[1731229331578,0.19355168,79072.0,79070.0,0.1]
[1731229331729,0.19355168,79072.0,79067.0,0.01319065]
[1731229331929,0.09677584,79068.0,79067.0,0.01319065]
[1731229332134,0.09677584,79068.0,79060.0,0.19007071]
[1731229332371,0.09377584,79061.0,79058.0,0.006678]
[1731229332576,1.5,79060.0,79058.0,0.006678]
[1731229333134,1.5,79060.0,79059.0,0.23462021]
[1731229333337,1.5,79060.0,79059.0,0.31702021]